[Event "*** MasterClass Titled Tuesday Blitz"]
[Site "Chess.com"]
[Date "2017.12.05"]
[Round "9"]
[White "luisgui16"]
[Black "toad"]
[Result "1-0"]
[WhiteElo "2322"]
[BlackElo "2157"]
[TimeControl "180+2"]
[EndTime "16:13:25 PST"]
[Termination "luisgui16 won by resignation"]

1. e4 {[%clk 0:02:47.7]} 1... c5 {[%clk 0:03:00.7]} 2. Nf3 {[%clk 0:02:48.2]}
2... d6 {[%clk 0:03:01.8]} 3. d4 {[%clk 0:02:46.7]} 3... cxd4 {[%clk 0:03:03.7]}
4. Nxd4 {[%clk 0:02:48.1]} 4... Nf6 {[%clk 0:03:05]} 5. Nc3 {[%clk 0:02:48.9]}
5... a6 {[%clk 0:03:06.2]} 6. Bg5 {[%clk 0:02:49.8]} 6... Nbd7 {[%clk
0:03:06.6]} 7. f4 {[%clk 0:02:48.4]} 7... e5 {[%clk 0:03:07.1]} 8. Nf5 {[%clk
0:02:34]} 8... Qb6 {[%clk 0:03:08.1]} 9. Qd2 {[%clk 0:02:15]} 9... Qxb2 {[%clk
0:03:07.8]} 10. Rb1 {[%clk 0:02:14]} 10... Qa3 {[%clk 0:03:09.1]} 11. Bc4 {[%clk
0:01:59.6]} 11... Qc5 {[%clk 0:03:07.5]} 12. Bd5 {[%clk 0:01:52.2]} 12... h6
{[%clk 0:02:36.5]} 13. Bh4 {[%clk 0:01:48.4]} 13... g6 {[%clk 0:02:36.8]} 14.
Bf2 {[%clk 0:01:49.1]} 14... Qc7 {[%clk 0:02:31.6]} 15. Ne3 {[%clk 0:01:45.3]}
15... exf4 {[%clk 0:02:13.7]} 16. Nc4 {[%clk 0:01:42.3]} 16... g5 {[%clk
0:02:09.5]} 17. Nb6 {[%clk 0:01:15.9]} 17... Nxb6 {[%clk 0:01:56.9]} 18. Bxb6
{[%clk 0:01:16.9]} 18... Qe7 {[%clk 0:01:56.8]} 19. O-O {[%clk 0:01:11.4]} 19...
Bg7 {[%clk 0:01:57]} 20. Bd4 {[%clk 0:01:04.1]} 20... O-O {[%clk 0:01:54.5]} 21.
Na4 {[%clk 0:01:04.8]} 21... Nxd5 {[%clk 0:01:32.3]} 22. exd5 {[%clk 0:01:02.7]}
22... Bxd4+ {[%clk 0:01:21.9]} 23. Qxd4 {[%clk 0:01:04.6]} 23... Qe3+ {[%clk
0:01:22.9]} 24. Qxe3 {[%clk 0:01:05]} 24... fxe3 {[%clk 0:01:24.6]} 25. Rfe1
{[%clk 0:01:04.5]} 25... Re8 {[%clk 0:01:21.7]} 26. Nb6 {[%clk 0:01:04.5]} 26...
Rb8 {[%clk 0:01:22.6]} 27. Rb3 {[%clk 0:01:04.8]} 27... Bf5 {[%clk 0:01:15.5]}
28. c4 {[%clk 0:00:59]} 28... Kf8 {[%clk 0:00:34.9]} 29. Rbxe3 {[%clk
0:00:50.8]} 29... Rxe3 {[%clk 0:00:35.6]} 30. Rxe3 {[%clk 0:00:52.2]} 30... Re8
{[%clk 0:00:36.6]} 31. Kf2 {[%clk 0:00:48.6]} 31... Bb1 {[%clk 0:00:29.2]} 32.
Nd7+ {[%clk 0:00:44.2]} 32... Kg7 {[%clk 0:00:29.9]} 33. Rxe8 {[%clk 0:00:44.5]}
33... Bxa2 {[%clk 0:00:30.6]} 34. Nb6 {[%clk 0:00:44.6]} 34... Kf6 {[%clk
0:00:28]} 35. Rb8 {[%clk 0:00:45.2]} 35... Ke5 {[%clk 0:00:28.3]} 36. Rxb7
{[%clk 0:00:45.6]} 36... f5 {[%clk 0:00:29.8]} 37. Ra7 {[%clk 0:00:44.6]} 37...
Kd4 {[%clk 0:00:29.9]} 38. Rxa6 {[%clk 0:00:45.3]} 38... Bb1 {[%clk 0:00:30.7]}
39. Nd7 {[%clk 0:00:42.6]} 39... Kxc4 {[%clk 0:00:31.1]} 40. Rxd6 {[%clk
0:00:43.4]} 40... Be4 {[%clk 0:00:31]} 41. Rxh6 {[%clk 0:00:40.8]} 41... Kxd5
{[%clk 0:00:24.8]} 42. Nf6+ {[%clk 0:00:41.4]} 42... Ke5 {[%clk 0:00:25.8]} 43.
Nxe4 {[%clk 0:00:41.6]} 43... Kxe4 {[%clk 0:00:26.3]} 44. g3 {[%clk 0:00:42.1]}
44... Ke5 {[%clk 0:00:24.3]} 45. h4 {[%clk 0:00:43.3]} 45... gxh4 {[%clk
0:00:24.3]} 46. Rxh4 {[%clk 0:00:44.2]} 1-0

[Event "*** MasterClass Titled Tuesday Blitz"]
[Site "Chess.com"]
[Date "2017.12.05"]
[Round "9"]
[White "Scott-fox21"]
[Black "Vamostodorecto"]
[Result "0-1"]
[WhiteElo "2190"]
[BlackElo "2331"]
[TimeControl "180+2"]
[EndTime "16:13:30 PST"]
[Termination "Vamostodorecto won by resignation"]

1. d4 {[%clk 0:03:01.9]} 1... Nf6 {[%clk 0:02:58.5]} 2. c4 {[%clk 0:03:02.1]}
2... g6 {[%clk 0:03:00.4]} 3. Nc3 {[%clk 0:03:02.9]} 3... d5 {[%clk 0:03:01.5]}
4. cxd5 {[%clk 0:03:04.3]} 4... Nxd5 {[%clk 0:03:03.1]} 5. Bd2 {[%clk
0:03:05.9]} 5... Bg7 {[%clk 0:03:02.4]} 6. e4 {[%clk 0:03:07.3]} 6... Nxc3
{[%clk 0:03:03.7]} 7. Bxc3 {[%clk 0:03:09.2]} 7... c5 {[%clk 0:03:04.4]} 8. d5
{[%clk 0:03:10.7]} 8... Bxc3+ {[%clk 0:03:05.2]} 9. bxc3 {[%clk 0:03:12.6]} 9...
O-O {[%clk 0:03:06.6]} 10. Qd2 {[%clk 0:03:13.7]} 10... e6 {[%clk 0:03:08]} 11.
d6 {[%clk 0:03:13.9]} 11... Bd7 {[%clk 0:03:07.9]} 12. Nf3 {[%clk 0:03:14.1]}
12... Bc6 {[%clk 0:03:00.8]} 13. Qh6 {[%clk 0:02:56.1]} 13... Qf6 {[%clk
0:02:55.3]} 14. e5 {[%clk 0:02:52.1]} 14... Qg7 {[%clk 0:02:54.9]} 15. Qxg7+
{[%clk 0:02:48.8]} 15... Kxg7 {[%clk 0:02:56.8]} 16. Be2 {[%clk 0:02:41.9]}
16... Nd7 {[%clk 0:02:55.9]} 17. O-O {[%clk 0:02:38.2]} 17... Bxf3 {[%clk
0:02:31.6]} 18. Bxf3 {[%clk 0:02:39.1]} 18... Nxe5 {[%clk 0:02:33.5]} 19. Bxb7
{[%clk 0:02:40.1]} 19... Rab8 {[%clk 0:02:34.7]} 20. Rab1 {[%clk 0:02:34.9]}
20... Rfd8 {[%clk 0:02:35.7]} 21. Rfd1 {[%clk 0:02:34.4]} 21... f5 {[%clk
0:02:17.2]} 22. f4 {[%clk 0:02:34.1]} 22... Nc4 {[%clk 0:02:05.5]} 23. d7 {[%clk
0:01:46.2]} 23... Na5 {[%clk 0:02:05.4]} 24. Bc8 {[%clk 0:01:41.8]} 24... Rb6
{[%clk 0:01:49.5]} 25. Rxb6 {[%clk 0:01:36.6]} 25... axb6 {[%clk 0:01:51.4]} 26.
Rd6 {[%clk 0:01:37.2]} 26... Nc4 {[%clk 0:01:48.6]} 27. Rxe6 {[%clk 0:01:37.2]}
27... Kf7 {[%clk 0:01:50.5]} 28. Rc6 {[%clk 0:01:24.1]} 28... Ke7 {[%clk
0:01:48.1]} 29. Rc7 {[%clk 0:01:03.3]} 29... Kd6 {[%clk 0:01:45.3]} 30. Ra7
{[%clk 0:01:00.8]} 30... Na5 {[%clk 0:01:32]} 31. Kf2 {[%clk 0:00:54.8]} 31...
Kd5 {[%clk 0:01:21.4]} 32. Kg3 {[%clk 0:00:54.2]} 32... Kc4 {[%clk 0:01:21.5]}
33. Ba6+ {[%clk 0:00:34.6]} 33... Kxc3 {[%clk 0:01:18.9]} 34. Bb5 {[%clk
0:00:35.9]} 34... Kb4 {[%clk 0:01:17]} 35. a4 {[%clk 0:00:36.7]} 35... c4 {[%clk
0:01:15.2]} 36. Rc7 {[%clk 0:00:37.3]} 36... c3 {[%clk 0:01:11.6]} 37. Rc8
{[%clk 0:00:38.1]} 37... Nb7 {[%clk 0:01:11.9]} 38. Ba6 {[%clk 0:00:28.3]} 38...
Rxd7 {[%clk 0:01:10.5]} 39. Rb8 {[%clk 0:00:14.6]} 39... Nc5 {[%clk 0:01:06.3]}
40. Rxb6+ {[%clk 0:00:14.6]} 40... Ka3 {[%clk 0:00:58.7]} 41. Rc6 {[%clk
0:00:16]} 41... Nxa6 {[%clk 0:00:56.5]} 42. Rxa6 {[%clk 0:00:17.2]} 42... c2
{[%clk 0:00:56.4]} 43. Rc6 {[%clk 0:00:17.8]} 43... Kb2 {[%clk 0:00:56.2]} 44.
Rb6+ {[%clk 0:00:18.9]} 44... Ka1 {[%clk 0:00:57]} 45. Rc6 {[%clk 0:00:19.8]}
45... Kb1 {[%clk 0:00:56]} 46. Rb6+ {[%clk 0:00:20.9]} 46... Kc1 {[%clk
0:00:54.4]} 47. Kh4 {[%clk 0:00:14.6]} 47... Kd2 {[%clk 0:00:54.2]} 48. Kg5
{[%clk 0:00:14.3]} 48... c1=Q {[%clk 0:00:54.8]} 49. g4 {[%clk 0:00:14.5]} 49...
Qg1 {[%clk 0:00:54.5]} 50. h3 {[%clk 0:00:15.4]} 50... Qxb6 {[%clk 0:00:54.7]}
51. Kh6 {[%clk 0:00:16.3]} 51... fxg4 {[%clk 0:00:54.9]} 52. h4 {[%clk
0:00:16.3]} 52... Qf6 {[%clk 0:00:55.3]} 53. h5 {[%clk 0:00:17.1]} 53... gxh5+
{[%clk 0:00:55.1]} 54. Kxh5 {[%clk 0:00:17.4]} 54... Qg6+ {[%clk 0:00:57]} 55.
Kh4 {[%clk 0:00:18.5]} 55... g3 {[%clk 0:00:58.1]} 0-1

[Event "*** MasterClass Titled Tuesday Blitz"]
[Site "Chess.com"]
[Date "2017.12.05"]
[Round "9"]
[White "Sam_ChessMood"]
[Black "Rodalquilar"]
[Result "1-0"]
[WhiteElo "2616"]
[BlackElo "2485"]
[TimeControl "180+2"]
[EndTime "16:13:34 PST"]
[Termination "Sam_ChessMood won by resignation"]

1. e4 {[%clk 0:03:01.9]} 1... Nf6 {[%clk 0:03:00.9]} 2. e5 {[%clk 0:02:58]} 2...
Nd5 {[%clk 0:03:02.3]} 3. d4 {[%clk 0:02:58.7]} 3... d6 {[%clk 0:03:03.6]} 4.
Nf3 {[%clk 0:03:00.1]} 4... dxe5 {[%clk 0:03:04.9]} 5. Nxe5 {[%clk 0:03:01.1]}
5... c6 {[%clk 0:03:06.4]} 6. Be2 {[%clk 0:03:02.1]} 6... Bf5 {[%clk 0:03:06.9]}
7. O-O {[%clk 0:02:58]} 7... Nd7 {[%clk 0:03:08.3]} 8. Nf3 {[%clk 0:02:57.9]}
8... e6 {[%clk 0:03:09.7]} 9. c4 {[%clk 0:02:54.5]} 9... N5f6 {[%clk 0:03:10.7]}
10. Nc3 {[%clk 0:02:55.3]} 10... Ne4 {[%clk 0:03:12]} 11. Bf4 {[%clk 0:02:50.8]}
11... Bd6 {[%clk 0:03:12.6]} 12. Bxd6 {[%clk 0:02:47.2]} 12... Nxd6 {[%clk
0:03:14.5]} 13. Qb3 {[%clk 0:02:48.2]} 13... Qc7 {[%clk 0:03:09.7]} 14. Rac1
{[%clk 0:02:26.5]} 14... h6 {[%clk 0:02:55]} 15. Rfd1 {[%clk 0:02:26.6]} 15...
O-O {[%clk 0:02:53.1]} 16. h3 {[%clk 0:02:27.4]} 16... Bh7 {[%clk 0:02:53.4]}
17. Bf1 {[%clk 0:02:27.2]} 17... Rfe8 {[%clk 0:02:51.5]} 18. Qa3 {[%clk
0:02:15]} 18... a6 {[%clk 0:02:38.5]} 19. b4 {[%clk 0:02:10.6]} 19... Rad8
{[%clk 0:02:37.9]} 20. Qb3 {[%clk 0:02:05.7]} 20... Qb8 {[%clk 0:02:35.1]} 21.
a4 {[%clk 0:02:06.5]} 21... b5 {[%clk 0:02:26]} 22. axb5 {[%clk 0:01:42.7]}
22... axb5 {[%clk 0:02:26.5]} 23. c5 {[%clk 0:01:43.8]} 23... Ne4 {[%clk
0:02:27.8]} 24. Bd3 {[%clk 0:01:20]} 24... Ndf6 {[%clk 0:01:54.8]} 25. Ne5
{[%clk 0:01:04.3]} 25... Rxd4 {[%clk 0:01:10.9]} 26. Nxc6 {[%clk 0:00:58.6]}
26... Qf4 {[%clk 0:01:11.7]} 27. Nxe4 {[%clk 0:00:37.8]} 27... Nxe4 {[%clk
0:01:12]} 28. Nxd4 {[%clk 0:00:24.9]} 28... Qxf2+ {[%clk 0:01:09.1]} 29. Kh1
{[%clk 0:00:26.1]} 29... Qxd4 {[%clk 0:00:46.6]} 30. Bxe4 {[%clk 0:00:21]} 30...
Qxe4 {[%clk 0:00:48.5]} 31. c6 {[%clk 0:00:22.3]} 31... Rc8 {[%clk 0:00:38.8]}
32. c7 {[%clk 0:00:22.9]} 32... Qa8 {[%clk 0:00:40]} 33. Qf3 {[%clk 0:00:20.6]}
33... Be4 {[%clk 0:00:28.2]} 34. Rd8+ {[%clk 0:00:20.8]} 34... Rxd8 {[%clk
0:00:16.9]} 35. cxd8=Q+ {[%clk 0:00:21.6]} 35... Qxd8 {[%clk 0:00:18.8]} 36.
Qxe4 {[%clk 0:00:23.1]} 36... g6 {[%clk 0:00:19.6]} 37. Qe3 {[%clk 0:00:15.1]}
37... Kh7 {[%clk 0:00:19.3]} 38. Qe5 {[%clk 0:00:14.8]} 38... Qh4 {[%clk
0:00:12.1]} 39. Rc8 {[%clk 0:00:12.3]} 39... Qe1+ {[%clk 0:00:10.1]} 40. Qxe1
{[%clk 0:00:12.5]} 1-0

[Event "*** MasterClass Titled Tuesday Blitz"]
[Site "Chess.com"]
[Date "2017.12.05"]
[Round "9"]
[White "Rhinos1"]
[Black "Colombiano07"]
[Result "0-1"]
[WhiteElo "2035"]
[BlackElo "2201"]
[TimeControl "180+2"]
[EndTime "16:13:39 PST"]
[Termination "Colombiano07 won by checkmate"]

1. e4 {[%clk 0:03:01.9]} 1... e6 {[%clk 0:03:00.3]} 2. d3 {[%clk 0:03:00]} 2...
c5 {[%clk 0:03:00.1]} 3. g3 {[%clk 0:02:59.3]} 3... Nc6 {[%clk 0:03:01.7]} 4.
Bg2 {[%clk 0:03:00]} 4... g6 {[%clk 0:03:03.6]} 5. Nf3 {[%clk 0:03:01.1]} 5...
Bg7 {[%clk 0:03:05.2]} 6. O-O {[%clk 0:03:01.7]} 6... Nge7 {[%clk 0:03:06.7]} 7.
c3 {[%clk 0:03:03.1]} 7... O-O {[%clk 0:03:08]} 8. Bg5 {[%clk 0:03:03.8]} 8...
h6 {[%clk 0:03:08.2]} 9. Be3 {[%clk 0:03:04.3]} 9... b6 {[%clk 0:03:06.9]} 10.
Nbd2 {[%clk 0:03:04.1]} 10... d5 {[%clk 0:03:06.2]} 11. d4 {[%clk 0:02:52.5]}
11... Ba6 {[%clk 0:03:04]} 12. Re1 {[%clk 0:02:52.5]} 12... cxd4 {[%clk
0:03:04.2]} 13. cxd4 {[%clk 0:02:52.5]} 13... dxe4 {[%clk 0:03:04.4]} 14. Nxe4
{[%clk 0:02:53.1]} 14... Nd5 {[%clk 0:03:04.7]} 15. a3 {[%clk 0:02:40.6]} 15...
Rc8 {[%clk 0:02:47.8]} 16. Rc1 {[%clk 0:02:29.7]} 16... Na5 {[%clk 0:02:47.8]}
17. b4 {[%clk 0:02:24.8]} 17... Nc4 {[%clk 0:02:47.1]} 18. Nc3 {[%clk
0:02:11.7]} 18... Ncxe3 {[%clk 0:02:43.8]} 19. Rxe3 {[%clk 0:01:55.9]} 19...
Nxe3 {[%clk 0:02:43.3]} 20. fxe3 {[%clk 0:01:57.8]} 20... Bb7 {[%clk 0:02:40.2]}
21. Qd3 {[%clk 0:01:27.2]} 21... Rc7 {[%clk 0:02:32.7]} 22. Rf1 {[%clk
0:01:22.3]} 22... Qa8 {[%clk 0:02:31.3]} 23. e4 {[%clk 0:01:18.5]} 23... Rfc8
{[%clk 0:02:30.4]} 24. Nb5 {[%clk 0:01:16.4]} 24... Bxe4 {[%clk 0:02:24.9]} 25.
Nxc7 {[%clk 0:01:16.5]} 25... Bxd3 {[%clk 0:02:25.3]} 26. Nxa8 {[%clk
0:01:18.4]} 26... Bxf1 {[%clk 0:02:26.2]} 27. Kxf1 {[%clk 0:01:03.2]} 27... Rxa8
{[%clk 0:02:25.7]} 28. Ke2 {[%clk 0:01:04.5]} 28... Rd8 {[%clk 0:02:23.7]} 29.
Ke3 {[%clk 0:01:04.4]} 29... g5 {[%clk 0:02:22.8]} 30. h3 {[%clk 0:01:04.6]}
30... f5 {[%clk 0:02:23.7]} 31. g4 {[%clk 0:00:53.5]} 31... Kf7 {[%clk
0:02:20.9]} 32. Bf1 {[%clk 0:00:41.7]} 32... Kg6 {[%clk 0:02:18]} 33. Bd3 {[%clk
0:00:42.3]} 33... h5 {[%clk 0:02:03.6]} 34. a4 {[%clk 0:00:38.4]} 34... hxg4
{[%clk 0:02:01.7]} 35. hxg4 {[%clk 0:00:40.3]} 35... Kf6 {[%clk 0:01:51.9]} 36.
Ne5 {[%clk 0:00:41]} 36... Bf8 {[%clk 0:01:26.3]} 37. Nc6 {[%clk 0:00:38.5]}
37... Rd7 {[%clk 0:01:18.3]} 38. Ne5 {[%clk 0:00:37.8]} 38... Rc7 {[%clk
0:01:12.9]} 39. gxf5 {[%clk 0:00:35.1]} 39... exf5 {[%clk 0:01:12.8]} 40. b5
{[%clk 0:00:36.4]} 40... Rc3 {[%clk 0:01:03]} 41. Kd2 {[%clk 0:00:29.4]} 41...
Ra3 {[%clk 0:01:03.1]} 42. Bc2 {[%clk 0:00:23.4]} 42... Bb4+ {[%clk 0:01:01.9]}
43. Ke2 {[%clk 0:00:24]} 43... Bc3 {[%clk 0:00:58.2]} 44. Nc6 {[%clk 0:00:25.1]}
44... g4 {[%clk 0:00:54.9]} 45. d5 {[%clk 0:00:25.2]} 45... Be5 {[%clk 0:00:50]}
46. Kf2 {[%clk 0:00:21.7]} 46... f4 {[%clk 0:00:48.5]} 47. Nxa7 {[%clk 0:00:12]}
47... Ra2 {[%clk 0:00:48.2]} 48. Ke2 {[%clk 0:00:08.2]} 48... Rxc2+ {[%clk
0:00:48.3]} 49. Kd3 {[%clk 0:00:10.1]} 49... Rc3+ {[%clk 0:00:49.9]} 50. Ke4
{[%clk 0:00:11.2]} 50... Re3# {[%clk 0:00:49.9]} 0-1

[Event "*** MasterClass Titled Tuesday Blitz"]
[Site "Chess.com"]
[Date "2017.12.05"]
[Round "9"]
[White "pedromartinez91"]
[Black "pastouche06"]
[Result "0-1"]
[WhiteElo "2230"]
[BlackElo "2336"]
[TimeControl "180+2"]
[EndTime "16:13:45 PST"]
[Termination "pastouche06 won on time"]

1. Nf3 {[%clk 0:03:01.9]} 1... d5 {[%clk 0:03:00.4]} 2. d4 {[%clk 0:03:01.3]}
2... Nf6 {[%clk 0:03:00]} 3. c4 {[%clk 0:03:01.4]} 3... e6 {[%clk 0:03:01.4]} 4.
Nc3 {[%clk 0:02:55.6]} 4... Be7 {[%clk 0:03:01.8]} 5. Bg5 {[%clk 0:02:55.3]}
5... Nbd7 {[%clk 0:03:00.5]} 6. cxd5 {[%clk 0:02:53.5]} 6... exd5 {[%clk
0:03:00.2]} 7. e3 {[%clk 0:02:55.4]} 7... h6 {[%clk 0:02:55.9]} 8. Bh4 {[%clk
0:02:53.8]} 8... c6 {[%clk 0:02:56]} 9. Qc2 {[%clk 0:02:42.3]} 9... Nh5 {[%clk
0:02:55]} 10. Bxe7 {[%clk 0:02:39.7]} 10... Qxe7 {[%clk 0:02:56.9]} 11. Be2
{[%clk 0:02:38.5]} 11... g6 {[%clk 0:02:50.6]} 12. O-O {[%clk 0:02:38.6]} 12...
Nb6 {[%clk 0:02:50.9]} 13. Ne5 {[%clk 0:02:32.1]} 13... Ng7 {[%clk 0:02:38.8]}
14. a3 {[%clk 0:02:28.1]} 14... O-O {[%clk 0:02:36]} 15. b4 {[%clk 0:02:27.2]}
15... Be6 {[%clk 0:02:29.2]} 16. Qb2 {[%clk 0:02:20.5]} 16... Nf5 {[%clk
0:02:17.9]} 17. a4 {[%clk 0:02:14.7]} 17... Nd6 {[%clk 0:02:17.4]} 18. a5 {[%clk
0:02:12.4]} 18... Nbc4 {[%clk 0:02:11.3]} 19. Bxc4 {[%clk 0:02:11.9]} 19... Nxc4
{[%clk 0:02:13.2]} 20. Nxc4 {[%clk 0:02:12.7]} 20... dxc4 {[%clk 0:02:15.1]} 21.
b5 {[%clk 0:02:12.7]} 21... Bf5 {[%clk 0:01:56.6]} 22. a6 {[%clk 0:02:11.9]}
22... Bd3 {[%clk 0:01:52.1]} 23. Rfc1 {[%clk 0:02:11.5]} 23... cxb5 {[%clk
0:01:50]} 24. Qxb5 {[%clk 0:02:13.4]} 24... bxa6 {[%clk 0:01:47.1]} 25. Qxa6
{[%clk 0:02:13.3]} 25... Rfd8 {[%clk 0:01:42.3]} 26. g3 {[%clk 0:02:12.3]} 26...
Rd6 {[%clk 0:01:37.6]} 27. Qa5 {[%clk 0:01:50.6]} 27... h5 {[%clk 0:01:31.2]}
28. h4 {[%clk 0:01:50.6]} 28... Qd7 {[%clk 0:01:25.7]} 29. Qc5 {[%clk
0:01:50.5]} 29... Kg7 {[%clk 0:01:12.7]} 30. Qe5+ {[%clk 0:01:50.5]} 30... f6
{[%clk 0:01:12]} 31. Qf4 {[%clk 0:01:49.5]} 31... Rb6 {[%clk 0:01:05.9]} 32. Qf3
{[%clk 0:01:47.8]} 32... Rd8 {[%clk 0:00:59]} 33. Ra3 {[%clk 0:01:43.4]} 33...
Rdb8 {[%clk 0:00:52.3]} 34. Nd5 {[%clk 0:01:20]} 34... Rd6 {[%clk 0:00:52.4]}
35. Nc3 {[%clk 0:01:14.8]} 35... Rdb6 {[%clk 0:00:52.6]} 36. Rca1 {[%clk
0:01:11.6]} 36... R8b7 {[%clk 0:00:51.9]} 37. Kh2 {[%clk 0:01:05.6]} 37... Rb3
{[%clk 0:00:46.6]} 38. Nd5 {[%clk 0:00:52.9]} 38... f5 {[%clk 0:00:37.9]} 39.
Nf4 {[%clk 0:00:45.6]} 39... Rxa3 {[%clk 0:00:37.2]} 40. Rxa3 {[%clk 0:00:45.8]}
40... Be4 {[%clk 0:00:38.4]} 41. Qd1 {[%clk 0:00:41.5]} 41... Rb1 {[%clk
0:00:37.2]} 42. Ne6+ {[%clk 0:00:12]} 42... Qxe6 {[%clk 0:00:31.5]} 43. Rxa7+
{[%clk 0:00:11.7]} 43... Kh6 {[%clk 0:00:32.6]} 0-1

[Event "*** MasterClass Titled Tuesday Blitz"]
[Site "Chess.com"]
[Date "2017.12.05"]
[Round "9"]
[White "tteshan"]
[Black "abubakrtagelsir"]
[Result "1-0"]
[WhiteElo "2033"]
[BlackElo "2262"]
[TimeControl "180+2"]
[EndTime "16:13:50 PST"]
[Termination "tteshan won by resignation"]

1. d4 {[%clk 0:03:01.5]} 1... d5 {[%clk 0:02:59.9]} 2. c4 {[%clk 0:03:02.6]}
2... c6 {[%clk 0:03:00.7]} 3. Nc3 {[%clk 0:03:02.9]} 3... Nf6 {[%clk 0:03:01.8]}
4. e3 {[%clk 0:03:04.4]} 4... a6 {[%clk 0:03:02]} 5. Nf3 {[%clk 0:03:05.6]} 5...
Bg4 {[%clk 0:03:00.6]} 6. cxd5 {[%clk 0:03:05.7]} 6... Nxd5 {[%clk 0:02:59.4]}
7. Nxd5 {[%clk 0:03:05]} 7... Qxd5 {[%clk 0:02:58.7]} 8. Be2 {[%clk 0:03:04.6]}
8... e6 {[%clk 0:02:59.5]} 9. O-O {[%clk 0:03:01.4]} 9... Bd6 {[%clk 0:02:59.7]}
10. h3 {[%clk 0:03:00.9]} 10... h5 {[%clk 0:02:51.2]} 11. Nd2 {[%clk 0:02:54.7]}
11... Bxe2 {[%clk 0:02:44]} 12. Qxe2 {[%clk 0:02:56]} 12... Nd7 {[%clk
0:02:42.2]} 13. Nf3 {[%clk 0:02:50]} 13... Nf6 {[%clk 0:02:34.2]} 14. Re1 {[%clk
0:02:45.1]} 14... Ne4 {[%clk 0:02:33.8]} 15. Nd2 {[%clk 0:02:43.5]} 15... g5
{[%clk 0:02:31.9]} 16. Nxe4 {[%clk 0:02:42.8]} 16... Qxe4 {[%clk 0:02:32.1]} 17.
Rd1 {[%clk 0:02:30.9]} 17... h4 {[%clk 0:02:28.6]} 18. Qd3 {[%clk 0:02:31.4]}
18... Qxd3 {[%clk 0:02:26.9]} 19. Rxd3 {[%clk 0:02:32.2]} 19... f5 {[%clk
0:02:27.8]} 20. Bd2 {[%clk 0:02:31.9]} 20... g4 {[%clk 0:02:27.2]} 21. hxg4
{[%clk 0:02:27.7]} 21... fxg4 {[%clk 0:02:27.7]} 22. Bc3 {[%clk 0:02:27.6]}
22... Rh5 {[%clk 0:02:27.8]} 23. e4 {[%clk 0:02:25.7]} 23... Bf4 {[%clk
0:02:25.9]} 24. Re1 {[%clk 0:02:22.1]} 24... Kf7 {[%clk 0:02:21.6]} 25. g3
{[%clk 0:02:19.8]} 25... hxg3 {[%clk 0:02:01]} 26. fxg3 {[%clk 0:02:20.4]} 26...
Bg5 {[%clk 0:02:01.4]} 27. Rf1+ {[%clk 0:02:20.6]} 27... Kg6 {[%clk 0:02:01.8]}
28. Kg2 {[%clk 0:02:18.3]} 28... Rah8 {[%clk 0:02:00.7]} 29. Kf2 {[%clk
0:02:02]} 29... Rh2+ {[%clk 0:01:51]} 30. Ke1 {[%clk 0:02:03]} 30... R8h3 {[%clk
0:01:47.7]} 31. Rf2 {[%clk 0:01:48.5]} 31... Rxf2 {[%clk 0:01:31.1]} 32. Kxf2
{[%clk 0:01:49.7]} 32... Rh2+ {[%clk 0:01:32]} 33. Kg1 {[%clk 0:01:49.8]} 33...
Rc2 {[%clk 0:01:30]} 34. Kf1 {[%clk 0:01:46.2]} 34... Rh2 {[%clk 0:01:22.8]} 35.
d5 {[%clk 0:01:32.2]} 35... exd5 {[%clk 0:01:23.4]} 36. exd5 {[%clk 0:01:31.4]}
36... cxd5 {[%clk 0:01:24.2]} 37. Rxd5 {[%clk 0:01:32.6]} 37... Rh7 {[%clk
0:01:25.2]} 38. Ke2 {[%clk 0:01:31.5]} 38... Rf7 {[%clk 0:01:25.2]} 39. Rd6+
{[%clk 0:01:29.2]} 39... Kh5 {[%clk 0:01:17.8]} 40. Rd5 {[%clk 0:01:24.4]} 40...
Kg6 {[%clk 0:01:17.8]} 41. Rd6+ {[%clk 0:01:25.2]} 41... Kh5 {[%clk 0:01:08.4]}
42. Rd5 {[%clk 0:01:26.4]} 42... Re7+ {[%clk 0:01:04.2]} 43. Kf2 {[%clk
0:01:18.1]} 43... Kg6 {[%clk 0:01:03.1]} 44. Rd6+ {[%clk 0:01:15.9]} 44... Kf7
{[%clk 0:01:01.6]} 45. Bd2 {[%clk 0:01:10]} 45... Bxd2 {[%clk 0:01:00.3]} 46.
Rxd2 {[%clk 0:01:11.4]} 46... Kf6 {[%clk 0:01:01.3]} 47. Rd4 {[%clk 0:01:12.2]}
47... Kf5 {[%clk 0:01:00.9]} 48. Rf4+ {[%clk 0:01:12.3]} 48... Kg5 {[%clk
0:01:01.3]} 49. Rb4 {[%clk 0:01:13.2]} 49... Rf7+ {[%clk 0:00:59.5]} 50. Kg2
{[%clk 0:01:13.6]} 50... Rc7 {[%clk 0:00:57.6]} 51. a4 {[%clk 0:01:03.8]} 51...
Kf5 {[%clk 0:00:55.9]} 52. Rf4+ {[%clk 0:01:03.3]} 52... Kg5 {[%clk 0:00:55.9]}
53. Rb4 {[%clk 0:01:04.8]} 53... Rf7 {[%clk 0:00:54.7]} 54. Rc4 {[%clk 0:01:01]}
54... Rf5 {[%clk 0:00:49.7]} 55. Rc8 {[%clk 0:00:58.9]} 55... Rc5 {[%clk
0:00:45.9]} 56. Rxc5+ {[%clk 0:00:58.9]} 1-0